bitfinex-derivatives/quotes_SOLF0:USTF0_20250731
["timestamp","ask_amount","ask_price","bid_price","bid_amount"]
[1753936640769,3.62763383,180.54,180.53,1.94460489]
[1753936641273,9.16673383,180.54,180.53,1.94460489]
[1753936643577,5.5394,180.53,180.52,1.94460489]
[1753936643771,3.62763383,180.54,180.51,1.94460489]
[1753936644476,5.5397,180.52,180.51,1.94460489]
[1753936644775,3.62763383,180.54,180.49,3.03877682]
[1753936645178,5.5401,180.51,180.49,3.03877682]
[1753936646777,5.5397,180.52,180.49,8.57927682]
[1753936647277,5.5401,180.51,180.49,3.03877682]
[1753936647576,3.62763383,180.54,180.49,3.03877682]
[1753936647777,3.62763383,180.54,180.51,3.03877682]
[1753936647976,5.5397,180.52,180.51,3.03877682]
[1753936652178,5.5394,180.53,180.51,3.03877682]
[1753936652374,5.5394,180.53,180.51,8.57857682]
[1753936652575,9.16693383,180.54,180.51,3.03877682]
[1753936652879,9.16693383,180.54,180.53,3.03877682]
[1753936658987,3.62763383,180.54,180.53,3.03877682]
[1753936661390,9.16673383,180.54,180.53,3.03877682]
[1753936661592,3.62763383,180.54,180.52,3.03877682]
[1753936662191,5.5396,180.53,180.52,3.03877682]
[1753936666997,5.5396,180.53,180.52,1.94418855]
[1753936670504,9.16683383,180.54,180.52,1.94418855]
[1753936670805,9.16683383,180.54,180.53,1.94418855]
[1753936671005,13.37465736,180.54,180.53,1.94418855]
[1753936673204,7.83545736,180.54,180.53,1.94418855]
[1753936673506,4.64272075,180.61,180.53,102.40418855]
[1753936673703,4.64272075,180.62,180.6,1.94418855]
[1753936673895,4.64272075,180.62,180.58,1.94418855]
[1753936674296,6.5869093,180.63,180.58,1.94418855]
[1753936675208,5.5376,180.59,180.58,1.94418855]
[1753936675603,4.64272075,180.62,180.55,1.94418855]
[1753936675803,1.94418855,180.6,180.55,1.94418855]
[1753936676011,1.94418855,180.58,180.55,1.94418855]
[1753936676912,5.539,180.55,180.53,100.46]
[1753936679206,5.539,180.55,180.52,3.03769061]
[1753936681610,5.5392,180.54,180.52,3.03769061]
[1753936681807,7.68041136,180.61,180.52,3.03769061]
[1753936682212,4.64272075,180.6,180.52,3.03769061]
[1753936682919,5.5393,180.54,180.52,3.03769061]
[1753936684008,4.64272075,180.6,180.52,3.03769061]
[1753936684204,7.68041136,180.59,180.51,100.48]
[1753936684408,3.03769061,180.57,180.51,100.48]
[1753936684609,5.5397,180.52,180.51,100.48]
[1753936687212,9.72617233,180.52,180.51,100.48]
[1753936687414,5.5397,180.52,180.51,100.48]
[1753936687810,9.72625519,180.52,180.51,100.48]
[1753936688818,5.5397,180.52,180.51,100.48]
[1753936689409,9.72646308,180.52,180.51,100.48]
[1753936692913,5.5395,180.53,180.51,100.48]
[1753936693115,5.5395,180.53,180.52,3.03769061]
[1753936693715,5.5392,180.54,180.52,3.03769061]
[1753936693912,4.64272075,180.58,180.52,3.03769061]
[1753936694113,4.21622705,180.57,180.54,3.03769061]
[1753936694321,5.5391,180.55,180.54,3.03769061]
[1753936696916,5.5386,180.56,180.54,3.03769061]
[1753936699723,5.5386,180.56,180.54,8.57669061]
[1753936699922,5.5383,180.57,180.54,8.57669061]
[1753936700123,5.5383,180.57,180.56,3.03769061]
[1753936708129,5.5393,180.54,180.51,106.0199]
[1753936708329,5.5393,180.54,180.53,3.03769061]
[1753936708530,3.03769061,180.62,180.53,3.03769061]
[1753936708732,5.539,180.55,180.53,3.03769061]
[1753936708934,11.0728,180.63,180.53,3.03769061]
[1753936709230,5.5379,180.58,180.57,3.03769061]
[1753936710023,5.5385,180.56,180.55,3.03769061]
[1753936711935,5.5391,180.54,180.53,3.03769061]
[1753936715229,5.5387,180.56,180.53,3.03769061]
[1753936715432,5.5387,180.56,180.55,3.03769061]
[1753936716741,5.5383,180.57,180.55,3.03769061]
[1753936717044,5.5383,180.57,180.56,103.57769061]
[1753936718936,5.5381,180.58,180.56,103.57769061]
[1753936719136,5.5381,180.58,180.57,3.03769061]
[1753936720152,4.65378201,180.64,180.57,3.03769061]
[1753936720351,4.2096989,180.63,180.57,3.03769061]
[1753936720551,4.2096989,180.62,180.57,3.03769061]
[1753936720753,4.2096989,180.61,180.57,3.03769061]
[1753936720947,4.2096989,180.6,180.57,3.03769061]
[1753936721148,4.65378201,180.64,180.57,3.03769061]
[1753936721350,4.20949627,180.63,180.57,3.03769061]
[1753936721548,4.20949627,180.62,180.57,3.03769061]
[1753936721752,5.5378,180.59,180.56,100.54]
[1753936721948,7.69147262,180.65,180.57,3.03769061]
[1753936722151,8.86309548,180.64,180.57,3.03769061]
[1753936722346,4.20931347,180.63,180.56,100.54]
[1753936722654,4.20931347,180.62,180.56,100.54]
[1753936722849,4.20931347,180.61,180.56,100.54]
[1753936723054,4.20931347,180.6,180.54,100.64]
[1753936723256,4.20931347,180.59,180.54,100.64]
[1753936723548,4.20931347,180.58,180.54,100.64]
[1753936723746,3.03769061,180.61,180.54,100.64]
[1753936723943,5.5388,180.55,180.54,100.64]
[1753936726551,4.65378201,180.62,180.54,100.64]
[1753936726750,4.20469812,180.61,180.54,100.64]
[1753936726951,4.20469812,180.6,180.55,3.03769061]
[1753936727151,4.20469812,180.59,180.55,3.03769061]
[1753936727354,4.20469812,180.58,180.55,3.03769061]
[1753936727556,4.65378201,180.62,180.55,3.03769061]
[1753936727757,4.20478303,180.61,180.55,3.03769061]
[1753936727955,4.20478303,180.6,180.55,3.03769061]
[1753936728157,5.5385,180.56,180.55,3.03769061]
[1753936729062,5.5388,180.55,180.54,100.64]
[1753936730752,5.5385,180.56,180.54,100.64]
[1753936730963,4.65378201,180.63,180.55,3.03769061]
[1753936731259,4.20520724,180.62,180.57,3.03769061]
[1753936731458,5.5379,180.58,180.57,3.03769061]
[1753936736363,9.74829718,180.58,180.57,3.03769061]
[1753936738961,4.21039718,180.58,180.55,3.03769061]
[1753936739159,4.21039718,180.57,180.55,3.03769061]
[1753936739356,4.65378201,180.62,180.55,3.03769061]
[1753936739553,5.5385,180.56,180.55,3.03769061]
[1753936742262,9.75252523,180.56,180.55,3.03769061]
[1753936746062,5.5385,180.56,180.55,3.03769061]
[1753936748971,5.5385,180.57,180.55,3.03769061]
[1753936749172,5.5385,180.57,180.56,3.03769061]
[1753936749362,4.65378201,180.62,180.56,3.03769061]
[1753936749566,4.21384324,180.61,180.58,3.03769061]
[1753936749872,4.21384324,180.6,180.58,3.03769061]
[1753936750068,4.21384324,180.59,180.58,3.03769061]
[1753936750376,9.75144324,180.59,180.58,3.03769061]
[1753936750567,4.65378201,180.67,180.58,3.03769061]
[1753936750766,4.65378201,180.68,180.63,3.03769061]
[1753936751272,5.536,180.64,180.63,3.03769061]
[1753936752070,5.5359,180.65,180.63,3.03769061]
[1753936753073,4.65378201,180.69,180.63,3.03769061]
[1753936753472,4.65378201,180.7,180.63,3.03769061]
[1753936753671,5.5357,180.65,180.63,3.03769061]
[1753936753874,5.5357,180.65,180.61,106.3567]
[1753936754071,5.5355,180.66,180.63,3.03769061]
[1753936754375,5.5355,180.66,180.61,100.82]
[1753936754376,4.65378201,180.71,180.65,3.03769061]
[1753936754770,5.5353,180.67,180.65,3.03769061]
[1753936755971,5.5354,180.66,180.65,3.03769061]
[1753936759879,4.65378201,180.73,180.61,106.3568]
[1753936760079,4.65378201,180.73,180.65,3.03769061]
[1753936760678,5.5355,180.66,180.65,3.03769061]
[1753936762082,5.5352,180.67,180.65,3.03769061]
[1753936765384,5.5352,180.67,180.66,3.03769061]
[1753936771884,15.71968201,180.75,180.61,100.82]
[1753936772089,7.18812456,180.74,180.66,3.03769061]
[1753936772291,5.5351,180.67,180.66,3.03769061]
[1753936772584,5.5351,180.67,180.64,103.89769061]
[1753936772785,3.03769061,180.72,180.64,3.03769061]
[1753936772989,5.5355,180.66,180.64,3.03769061]
[1753936776894,5.5357,180.65,180.64,3.03769061]
[1753936777492,5.5357,180.65,180.64,103.89769061]
[1753936777690,5.5355,180.66,180.64,103.89769061]
[1753936778697,5.5355,180.66,180.64,100.86]
[1753936778896,5.5355,180.66,180.65,3.03769061]
[1753936779192,5.5357,180.65,180.64,100.86]
[1753936779398,3.03769061,180.72,180.65,3.03769061]
[1753936779597,4.15255004,180.71,180.65,3.03769061]
[1753936779795,5.5356,180.66,180.65,3.03769061]
[1753936786899,5.5356,180.66,180.65,1.94115284]
[1753936788896,5.5354,180.67,180.65,1.94115284]
[1753936789095,5.5354,180.67,180.66,1.94115284]
[1753936789895,4.64020567,180.73,180.66,1.94115284]
[1753936790090,4.64020567,180.75,180.72,1.94115284]
[1753936790297,4.15902687,180.74,180.72,1.94115284]
[1753936790597,4.15902687,180.73,180.72,1.94115284]
[1753936790800,4.15902687,180.76,180.72,1.94115284]
[1753936791102,5.5339,180.71,180.7,100.74]
[1753936791302,5.5339,180.71,180.7,102.68115284]
[1753936791492,5.5339,180.71,180.7,1.94115284]
[1753936791697,4.16118508,180.71,180.67,100.78]
[1753936791899,6.10233792,180.7,180.67,100.78]
[1753936792096,4.16118508,180.69,180.67,100.78]
[1753936792396,5.5348,180.68,180.67,100.78]
[1753936792996,9.69856579,180.68,180.67,100.78]
[1753936793301,4.16376579,180.68,180.65,100.78]
[1753936793499,4.16376579,180.67,180.65,100.78]
[1753936793697,4.16376579,180.66,180.65,100.78]
[1753936793901,9.69916579,180.66,180.65,100.78]
[1753936794806,5.5354,180.66,180.65,100.78]
[1753936795508,9.70666598,180.66,180.65,100.78]
[1753936797108,5.5354,180.66,180.65,100.78]
[1753936799408,9.7082003,180.66,180.65,100.78]
[1753936800509,4.1728003,180.66,180.61,3.03327092]
[1753936800711,4.1728003,180.65,180.59,3.03327092]
[1753936800907,4.1728003,180.64,180.6,100.76]
[1753936801108,5.537,180.61,180.6,100.76]
[1753936802008,5.537,180.61,180.59,100.76]
[1753936802809,4.64020567,180.66,180.58,3.03327092]
[1753936802810,5.5376,180.59,180.58,3.03327092]
[1753936803011,5.5376,180.59,180.58,103.79327092]
[1753936803210,7.67347659,180.65,180.58,100.78]
[1753936803402,3.03327092,180.63,180.56,3.03327092]
[1753936803705,4.16899353,180.62,180.56,100.84]
[1753936803912,4.16899353,180.61,180.56,100.84]
[1753936804112,4.16899353,180.6,180.56,100.84]
[1753936804409,4.16899353,180.59,180.56,100.84]
[1753936804604,5.5382,180.57,180.56,100.84]
[1753936804811,3.03327092,180.63,180.56,100.82]
[1753936805006,4.16643776,180.62,180.55,100.82]
[1753936805213,4.16643776,180.61,180.55,100.82]
[1753936805512,4.16643776,180.6,180.55,100.82]
[1753936805704,3.03327092,180.63,180.55,100.82]
[1753936805910,5.5386,180.56,180.55,100.82]
[1753936808015,5.5388,180.55,180.54,3.03327092]
[1753936808212,5.5388,180.55,180.54,100.8]
[1753936809613,3.03327092,180.6,180.52,3.03327092]
[1753936809921,3.03327092,180.58,180.52,100.82]
[1753936810322,5.5396,180.53,180.52,100.82]
[1753936810716,5.5405,180.5,180.49,100.88]
[1753936811619,5.5401,180.51,180.49,100.88]
[1753936811923,3.03327092,180.56,180.49,100.88]
[1753936812823,3.03327092,180.57,180.49,100.88]
[1753936813522,5.5402,180.51,180.49,100.88]
[1753936813913,5.5402,180.51,180.49,103.91327092]
[1753936815825,5.5403,180.5,180.49,103.91327092]
[1753936816425,5.5403,180.5,180.49,100.88]
[1753936817027,5.5401,180.51,180.49,100.88]
[1753936817226,3.03327092,180.57,180.49,100.88]
[1753936818028,5.5403,180.5,180.49,100.88]
[1753936818228,3.03327092,180.57,180.49,100.88]
[1753936819125,5.54,180.51,180.49,100.88]
[1753936819928,5.5403,180.5,180.49,100.88]
[1753936820322,3.03327092,180.55,180.47,372.08]
[1753936820527,5.542,180.45,180.41,5.5429]
[1753936820827,3.03327092,180.51,180.43,3.03327092]
[1753936821329,3.03327092,180.51,180.42,100.9]
[1753936821330,5.5424,180.44,180.42,100.9]
[1753936821531,5.5424,180.44,180.42,103.93327092]
[1753936822131,3.03327092,180.51,180.42,103.93327092]
[1753936822526,5.542,180.45,180.42,103.93327092]
[1753936823732,5.5417,180.46,180.42,109.47597092]
[1753936824729,5.5419,180.45,180.42,109.47597092]
[1753936825030,3.03327092,180.55,180.44,3.03327092]
[1753936825230,3.03327092,180.57,180.48,3.03327092]
[1753936825430,4.13856876,180.56,180.48,103.95327092]
[1753936825736,3.03327092,180.57,180.48,103.95327092]
[1753936825928,4.1385565,180.56,180.48,103.95327092]
[1753936826128,5.5406,180.5,180.48,103.95327092]
[1753936827533,3.03327092,180.57,180.48,103.95327092]
[1753936828434,5.5393,180.54,180.5,3.03327092]
[1753936828740,11.0752,180.59,180.5,3.03327092]
[1753936829936,5.5396,180.53,180.5,3.03327092]
[1753936830536,135.27711009,180.6,180.51,5.54]
[1753936830834,135.27711009,180.6,180.52,3.03327092]
[1753936831234,5.5393,180.54,180.52,3.03327092]
[1753936832737,132.24383917,180.6,180.35,162.08561753]
[1753936833038,147.20584762,180.5,180.41,100.16936004]
[1753936833242,144.1725767,180.43,180.41,97.13608912]
[1753936833538,3.03327092,180.48,180.4,102.34]
[1753936833839,5.5431,180.41,180.4,102.34]
[1753936836238,3.03327092,180.44,180.36,372.28]
[1753936836437,3.03327092,180.44,180.37,102.38]
[1753936836840,5.544,180.38,180.37,102.38]
[1753936838239,3.03327092,180.48,180.37,105.41327092]
[1753936838536,4.138061,180.47,180.4,99.89614761]
[1753936838738,5.5428,180.42,180.41,102.34]
[1753936840340,146.03339538,180.46,180.4,102.34]
[1753936840537,3.03327092,180.44,180.4,93.551]
[1753936840843,3.03327092,180.44,180.37,102.34]
[1753936841440,5.544,180.38,180.37,102.34]
[1753936843245,5.544,180.38,180.14,12.44595334]
[1753936843246,3.03327092,180.38,180.3,3.03327092]
[1753936843449,4.1668539,180.37,180.31,102.32]
[1753936843746,5.5458,180.32,180.31,102.32]
[1753936852652,4.64020567,180.4,180.31,102.32]
[1753936852857,4.15535779,180.39,180.31,105.35327092]
[1753936853151,5.5455,180.34,180.31,105.35327092]
[1753936853351,3.03327092,180.4,180.31,105.35327092]
[1753936853549,4.15591304,180.39,180.33,3.03327092]
[1753936853749,3.03327092,180.42,180.33,3.03327092]
[1753936853945,4.15592838,180.41,180.33,3.03327092]
[1753936854145,4.15592838,180.4,180.33,3.03327092]
[1753936854348,5.5452,180.35,180.33,3.03327092]
[1753936856255,5.5452,180.34,180.33,3.03327092]
[1753936860261,3.03327092,180.42,180.33,3.03327092]
[1753936860456,4.16211273,180.41,180.37,3.03327092]
[1753936860658,150.67360105,180.46,180.39,3.03327092]
[1753936860659,143.00012446,180.46,180.39,3.03327092]
[1753936860963,4.16272788,180.45,180.39,3.03327092]
[1753936861157,4.16272788,180.44,180.39,3.03327092]
[1753936861349,143.00012446,180.46,180.39,3.03327092]
[1753936861554,4.16492578,180.45,180.41,3.03327092]
[1753936861753,143.00012446,180.46,180.41,3.03327092]
[1753936861956,4.1649621,180.45,180.41,3.03327092]
[1753936862160,5.5428,180.42,180.41,3.03327092]
[1753936862464,143.00012446,180.46,180.41,3.03327092]
[1753936862656,4.16622713,180.45,180.41,3.03327092]
[1753936862860,143.00012446,180.46,180.41,3.03327092]
[1753936863050,4.16622026,180.45,180.41,3.03327092]
[1753936863256,5.5426,180.43,180.41,3.03327092]
[1753936863752,5.5428,180.42,180.41,3.03327092]
[1753936864160,143.00012446,180.46,180.39,3.03327092]
[1753936864358,5.543,180.42,180.39,3.03327092]
[1753936864555,5.543,180.42,180.37,107.9841]
[1753936864756,143.00012446,180.46,180.39,3.03327092]
[1753936864961,5.543,180.42,180.39,3.03327092]
[1753936865359,143.00012446,180.46,180.39,3.03327092]
[1753936865559,4.17170096,180.45,180.39,3.03327092]
[1753936865857,143.00012446,180.46,180.41,3.03327092]
[1753936866159,4.17161136,180.45,180.41,3.03327092]
[1753936866360,143.00012446,180.46,180.41,3.03327092]
[1753936866361,5.5429,180.42,180.41,3.03327092]
[1753936866661,143.00012446,180.46,180.37,107.9842]
[1753936866864,4.1721527,180.45,180.4,3.03327092]
[1753936867063,143.00012446,180.46,180.4,3.03327092]
[1753936867263,5.5434,180.41,180.4,3.03327092]
[1753936868964,5.5429,180.42,180.4,3.03327092]
[1753936869359,143.00012446,180.46,180.4,3.03327092]
[1753936869761,5.5431,180.41,180.4,3.03327092]
[1753936870658,5.5434,180.4,180.37,102.44]
[1753936870867,3.03327092,180.43,180.33,3.03327092]
[1753936871065,3.03327092,180.41,180.33,105.39327092]
[1753936871266,5.5452,180.34,180.33,105.39327092]
[1753936871868,3.03327092,180.43,180.33,105.39327092]
[1753936872166,4.17604443,180.42,180.35,3.03327092]
[1753936872357,3.03327092,180.43,180.35,3.03327092]
[1753936872555,4.17791422,180.42,180.35,3.03327092]
[1753936872755,14.11717092,180.45,180.37,3.03327092]
[1753936872961,4.17791422,180.44,180.37,3.03327092]
[1753936873154,4.17791422,180.43,180.37,3.03327092]
[1753936873356,4.17791422,180.42,180.37,3.03327092]
[1753936873557,14.11717092,180.45,180.37,3.03327092]
[1753936873866,4.178219,180.44,180.37,3.03327092]
[1753936874069,4.178219,180.43,180.37,3.03327092]
[1753936874268,4.178219,180.42,180.35,3.03327092]
[1753936874459,4.18116441,180.41,180.35,3.03327092]
[1753936874660,18.73359369,180.45,180.35,3.03327092]
[1753936874865,5.5443,180.38,180.35,3.03327092]
[1753936877067,3.03327092,180.43,180.35,3.03327092]
[1753936877269,4.18862472,180.42,180.33,105.39327092]
[1753936877479,4.18862472,180.41,180.33,105.39327092]
[1753936877674,4.18862472,180.4,180.33,105.39327092]
[1753936877865,4.18862472,180.39,180.33,105.39327092]
[1753936878061,7.64969369,180.43,180.33,105.39327092]
[1753936878268,5.5448,180.36,180.33,105.39327092]
[1753936878464,4.61642277,180.43,180.35,3.03327092]
[1753936878670,8.81132096,180.44,180.35,3.03327092]
[1753936878870,4.19489819,180.43,180.35,3.03327092]
[1753936879073,5.544,180.38,180.35,3.03327092]
[1753936880668,5.5445,180.37,180.35,3.03327092]
[1753936880972,5.5445,180.37,180.35,8.57817092]
[1753936881772,5.5441,180.38,180.35,8.57817092]
[1753936882086,5.5441,180.38,180.37,3.03327092]
[1753936882580,5.5437,180.39,180.37,3.03327092]
[1753936882768,15.70032277,180.45,180.38,3.03327092]
[1753936882969,4.19654768,180.44,180.38,3.03327092]
[1753936883165,5.5437,180.39,180.38,3.03327092]
[1753936883776,5.5435,180.4,180.38,3.03327092]
[1753936884276,147.61654723,180.46,180.38,8.57727092]
[1753936884479,4.19558951,180.45,180.38,8.57727092]
[1753936884673,4.19558951,180.44,180.38,3.03327092]
[1753936884874,4.19558951,180.43,180.38,3.03327092]
[1753936885074,4.19558951,180.42,180.38,3.03327092]
[1753936885274,5.5434,180.4,180.38,3.03327092]
[1753936887481,5.5432,180.41,180.38,3.03327092]
[1753936888379,5.5432,180.41,180.38,8.57727092]
[1753936890469,5.5432,180.41,180.4,3.03327092]
[1753936890874,5.5429,180.42,180.4,3.03327092]
[1753936892175,5.5426,180.43,180.4,3.03327092]
[1753936892374,143.00012446,180.46,180.42,3.03327092]
[1753936892577,4.19695809,180.45,180.42,3.03327092]
[1753936892775,5.5424,180.44,180.42,3.03327092]
[1753936894385,5.5425,180.43,180.42,3.03327092]
[1753936897687,5.5422,180.44,180.42,3.03327092]
[1753936899880,5.542,180.45,180.42,8.57607092]
[1753936900187,143.00012446,180.46,180.44,3.03327092]
[1753936901090,5.5418,180.45,180.44,3.03327092]
[1753936901787,143.00012446,180.46,180.44,3.03327092]
[1753936902389,143.00012446,180.46,180.45,5.5418]
[1753936902590,143.00012446,180.46,180.44,3.03327092]
[1753936902888,143.00012446,180.46,180.44,8.57527092]
[1753936904389,143.00012446,180.46,180.45,5.5418]
[1753936905888,5.541,180.48,180.45,5.5418]
[1753936906090,5.541,180.48,180.47,3.03327092]
[1753936907694,5.5407,180.49,180.47,3.03327092]
[1753936908188,144.1725767,180.5,180.47,3.03327092]
[1753936909193,5.5406,180.49,180.47,3.03327092]
[1753936916602,5.5409,180.48,180.47,3.03327092]
[1753936917904,5.5407,180.49,180.47,3.03327092]
[1753936920908,5.5409,180.48,180.47,3.03327092]
[1753936922897,5.5408,180.49,180.47,3.03327092]
[1753936925012,5.5409,180.48,180.47,3.03327092]
[1753936925212,144.1725767,180.5,180.47,3.03327092]
[1753936925606,5.5408,180.49,180.47,3.03327092]
[1753936926006,5.5408,180.49,180.47,8.57447092]
[1753936926205,144.1725767,180.5,180.47,3.03327092]
[1753936926206,149.7130767,180.5,180.47,3.03327092]
[1753936926407,144.1725767,180.5,180.47,3.03327092]
[1753936927414,5.5406,180.49,180.47,3.03327092]
[1753936927611,144.1725767,180.5,180.45,3.03327092]
[1753936927811,4.19282334,180.49,180.42,10.03327092]
[1753936928011,144.1725767,180.5,180.42,10.03327092]
[1753936928012,4.19282334,180.48,180.42,8.57577092]
[1753936928213,144.1725767,180.5,180.42,8.57577092]
[1753936928511,5.5418,180.46,180.42,8.57577092]
[1753936929309,144.1725767,180.5,180.42,3.03327092]
[1753936929516,4.19429279,180.49,180.42,3.03327092]
[1753936929711,4.19429279,180.48,180.42,3.03327092]
[1753936929911,4.19429279,180.47,180.42,3.03327092]
[1753936930215,5.5418,180.46,180.42,8.57597092]
[1753936930511,144.1725767,180.5,180.44,3.03327092]
[1753936930712,4.19555864,180.49,180.46,3.03327092]
[1753936931018,144.1725767,180.5,180.48,3.03327092]
[1753936931216,9.73730475,180.49,180.48,3.03327092]
[1753936932520,5.5407,180.49,180.48,3.03327092]
[1753936933116,9.738313,180.49,180.48,3.03327092]
[1753936939424,4.197613,180.49,180.48,3.03327092]
[1753936941124,9.738213,180.49,180.48,3.03327092]
[1753936941723,4.197613,180.49,180.48,3.03327092]
[1753936943427,4.197613,180.49,180.48,8.57417092]
[1753936943723,144.1725767,180.5,180.48,3.03327092]
[1753936944127,4.61642277,180.56,180.52,3.03327092]
[1753936944426,5.5394,180.53,180.52,3.03327092]
[1753936944622,9.74783746,180.53,180.52,3.03327092]
[1753936949030,4.20843746,180.53,180.52,3.03327092]
[1753936950130,9.74783746,180.53,180.52,3.03327092]
[1753936950731,4.20843746,180.53,180.47,3.03327092]
[1753936950924,4.20843746,180.52,180.47,3.03327092]
[1753936951226,4.61642277,180.55,180.47,8.57427092]
[1753936951227,5.5406,180.5,180.47,8.57427092]
[1753936951633,4.61642277,180.55,180.47,3.03327092]
[1753936951831,4.20567367,180.54,180.47,3.03327092]
[1753936952034,4.20567367,180.53,180.47,3.03327092]
[1753936952330,4.20567367,180.52,180.47,3.03327092]
[1753936952529,4.20567367,180.51,180.47,3.03327092]
[1753936952733,4.61642277,180.55,180.49,3.03327092]
[1753936952928,4.20551268,180.54,180.49,3.03327092]
[1753936953132,4.20551268,180.53,180.51,3.03327092]
[1753936953335,4.20551268,180.52,180.51,3.03327092]
[1753936953523,5.5395,180.53,180.51,3.03327092]
[1753936954636,5.5397,180.52,180.51,3.03327092]
[1753936959337,9.74221361,180.52,180.51,3.03327092]
[1753936959736,5.5397,180.52,180.51,3.03327092]
[1753936962243,5.5395,180.53,180.51,3.03327092]
[1753936964343,5.5397,180.52,180.51,3.03327092]
[1753936965241,9.73860096,180.52,180.51,3.03327092]
[1753936965640,4.19890096,180.52,180.49,3.03327092]
[1753936965839,4.61642277,180.56,180.49,3.03327092]
[1753936966043,4.19910844,180.55,180.49,3.03327092]
[1753936966345,4.19910844,180.54,180.49,3.03327092]
[1753936966545,4.19910844,180.53,180.49,3.03327092]
[1753936966744,4.19910844,180.52,180.5,1.944822]
[1753936966943,1.944822,180.55,180.5,1.944822]
[1753936967241,4.19914006,180.54,180.5,1.944822]
[1753936967544,5.54,180.51,180.5,1.944822]
[1753936968746,5.54,180.51,180.49,3.03836229]
[1753936971243,5.54,180.51,180.48,106.7409]
[1753936971447,5.54,180.51,180.49,3.03836229]
[1753936972440,5.5398,180.52,180.49,8.57896229]
[1753936972647,4.61642277,180.57,180.49,8.57896229]
[1753936972943,4.1991115,180.56,180.49,8.57896229]
[1753936973137,5.5399,180.52,180.49,8.57896229]
[1753936974145,5.54,180.51,180.49,8.57896229]
[1753936979450,5.5399,180.52,180.49,8.57896229]
[1753936980149,5.5399,180.52,180.5,5.5403]
[1753936980343,5.5399,180.52,180.51,3.03836229]
[1753936980539,9.74391958,180.52,180.51,3.03836229]
[1753936981346,4.20401958,180.52,180.51,8.57836229]
[1753936981548,4.61642277,180.57,180.51,3.03836229]
[1753936981749,4.20425001,180.56,180.54,3.03836229]
[1753936981949,9.74325001,180.55,180.54,3.03836229]
[1753936984454,4.20425001,180.55,180.54,3.03836229]
[1753936984947,9.74305001,180.55,180.54,3.03836229]
[1753936990452,4.20425001,180.55,180.51,3.03836229]
[1753936990645,4.20346127,180.54,180.51,101.0]
[1753936990849,4.20357457,180.53,180.51,102.94460234]
[1753936991051,5.5399,180.52,180.51,102.94460234]
[1753936991255,9.74369202,180.52,180.51,102.94460234]
[1753936992550,5.5403,180.51,180.5,1.94460234]
[1753936992748,5.5403,180.51,180.5,102.94460234]
[1753936993450,9.74437371,180.51,180.5,102.94460234]
[1753936995959,5.5411,180.48,180.47,1.94460234]
[1753936996158,1.94460234,180.52,180.47,102.96460234]
[1753936996351,4.20672016,180.51,180.47,102.96460234]
[1753936996551,5.5408,180.49,180.47,102.96460234]
[1753936996956,6.56102511,180.53,180.47,102.96460234]
[1753936997158,4.20641819,180.52,180.47,102.96460234]
[1753936997463,4.20641819,180.51,180.49,1.94460234]
[1753936997655,9.74671819,180.5,180.49,1.94460234]
[1753937000360,4.61642277,180.56,180.49,1.94460234]
[1753937000657,8.16765611,180.58,180.47,101.02]
[1753937000658,4.20482453,180.55,180.53,1.94460234]
[1753937000856,4.20482453,180.54,180.53,1.94460234]
[1753937001260,9.74392453,180.54,180.53,1.94460234]
[1753937002861,5.5397,180.53,180.51,104.05779942]
[1753937003454,5.5392,180.54,180.51,104.05779942]
[1753937003655,4.20454259,180.53,180.51,101.02]
[1753937003857,5.5392,180.54,180.51,101.02]
[1753937004157,4.20454259,180.53,180.51,101.02]
[1753937004359,5.5389,180.55,180.51,101.02]
[1753937004660,4.20438126,180.54,180.51,101.02]
[1753937004859,5.5389,180.55,180.53,3.03779942]
[1753937005057,4.20438126,180.54,180.53,3.03779942]
[1753937005767,9.74348126,180.54,180.53,3.03779942]
[1753937012464,5.5389,180.55,180.53,3.03779942]
[1753937012656,4.61642277,180.6,180.53,3.03779942]
[1753937012862,4.20390254,180.59,180.55,3.03779942]
[1753937013062,4.20390254,180.58,180.55,3.03779942]
[1753937013259,5.5386,180.56,180.55,3.03779942]
[1753937013461,4.20390254,180.56,180.53,101.0]
[1753937013661,4.20390254,180.55,180.53,104.03779942]
[1753937013856,4.61642277,180.6,180.53,104.03779942]
[1753937014061,4.20373061,180.59,180.55,3.03779942]
[1753937014260,4.20373061,180.58,180.55,3.03779942]
[1753937014463,4.20373061,180.57,180.55,3.03779942]
[1753937014662,4.20373061,180.56,180.55,3.03779942]